[Event "*** SCC Grand Prix: Titled Tuesday Blitz"]
[Site "Chess.com"]
[Date "2020.07.07"]
[Round "1"]
[White "Thipsay"]
[Black "VladaSviridova"]
[Result "1-0"]
[WhiteElo "2523"]
[BlackElo "2130"]
[TimeControl "180+1"]
[EndTime "10:06:45 PDT"]
[Termination "Thipsay won by resignation"]

1. e4 {[%clk 0:03:00.9]} 1... e6 {[%clk 0:02:58.9]} 2. d4 {[%clk 0:03:00]} 2...
d5 {[%clk 0:02:59]} 3. e5 {[%clk 0:03:00.3]} 3... c5 {[%clk 0:02:58.7]} 4. c3
{[%clk 0:03:00.5]} 4... Qb6 {[%clk 0:02:58.6]} 5. Nf3 {[%clk 0:03:00]} 5... Nc6
{[%clk 0:02:58.8]} 6. a3 {[%clk 0:02:58.4]} 6... c4 {[%clk 0:02:59.1]} 7. Nbd2
{[%clk 0:02:58.1]} 7... Na5 {[%clk 0:02:58.5]} 8. g3 {[%clk 0:02:57.9]} 8... Bd7
{[%clk 0:02:58.3]} 9. h4 {[%clk 0:02:58]} 9... Ne7 {[%clk 0:02:56.9]} 10. Bh3
{[%clk 0:02:57.8]} 10... h6 {[%clk 0:02:55.8]} 11. O-O {[%clk 0:02:57.5]} 11...
O-O-O {[%clk 0:02:55.7]} 12. Nh2 {[%clk 0:02:56.3]} 12... Kb8 {[%clk 0:02:54.1]}
13. h5 {[%clk 0:02:56.2]} 13... Qc7 {[%clk 0:02:53.5]} 14. f4 {[%clk 0:02:56]}
14... f5 {[%clk 0:02:19.6]} 15. g4 {[%clk 0:02:48.4]} 15... fxg4 {[%clk
0:02:14.7]} 16. Bxg4 {[%clk 0:02:47.8]} 16... Nf5 {[%clk 0:02:14.5]} 17. Bxf5
{[%clk 0:02:47.6]} 17... exf5 {[%clk 0:02:14.3]} 18. Re1 {[%clk 0:02:44]} 18...
Re8 {[%clk 0:02:03.8]} 19. Ndf1 {[%clk 0:02:43]} 19... Be6 {[%clk 0:02:01.5]}
20. Be3 {[%clk 0:02:41.2]} 20... Be7 {[%clk 0:01:59.5]} 21. Ng3 {[%clk
0:02:40.6]} 21... Ref8 {[%clk 0:01:56.1]} 22. Nf3 {[%clk 0:02:40.3]} 22... Qb6
{[%clk 0:01:52.1]} 23. Qe2 {[%clk 0:02:38]} 23... Nb3 {[%clk 0:01:51]} 24. Rad1
{[%clk 0:02:37.1]} 24... Qd8 {[%clk 0:01:48.7]} 25. Kg2 {[%clk 0:02:36.4]} 25...
Qe8 {[%clk 0:01:46.3]} 26. Rh1 {[%clk 0:02:36]} 26... g6 {[%clk 0:01:41.7]} 27.
Nh4 {[%clk 0:02:23.4]} 27... gxh5 {[%clk 0:01:38.3]} 28. Qxh5 {[%clk 0:02:21.2]}
28... Qxh5 {[%clk 0:01:37]} 29. Nxh5 {[%clk 0:02:20.9]} 29... Rhg8+ {[%clk
0:01:37.1]} 30. Kf3 {[%clk 0:02:20.1]} 30... Rg4 {[%clk 0:01:35.8]} 31. Ng2
{[%clk 0:02:12.1]} 31... Rfg8 {[%clk 0:01:35.5]} 32. Rh2 {[%clk 0:02:11.3]}
32... Bf7 {[%clk 0:01:32.7]} 33. Nf6 {[%clk 0:02:10.3]} 33... Bxf6 {[%clk
0:01:32.5]} 34. exf6 {[%clk 0:02:10.5]} 34... Rg3+ {[%clk 0:01:32.1]} 35. Kf2
{[%clk 0:02:10.5]} 35... h5 {[%clk 0:01:29.3]} 36. Rg1 {[%clk 0:02:08.5]} 36...
Na5 {[%clk 0:01:27.5]} 37. Rhh1 {[%clk 0:02:04.7]} 37... Nc6 {[%clk 0:01:24.5]}
38. Nh4 {[%clk 0:02:04.4]} 38... Rxg1 {[%clk 0:01:21.7]} 39. Rxg1 {[%clk
0:02:04.4]} 39... Rxg1 {[%clk 0:01:21.5]} 40. Kxg1 {[%clk 0:02:04.1]} 40... Be6
{[%clk 0:01:21.1]} 41. Ng6 {[%clk 0:02:02.3]} 41... Nd8 {[%clk 0:01:20.6]} 42.
Ne5 {[%clk 0:02:01.7]} 42... Nf7 {[%clk 0:01:19.6]} 43. Kh2 {[%clk 0:02:00.1]}
43... Kc7 {[%clk 0:01:17.2]} 44. Kg3 {[%clk 0:02:00.1]} 44... Kb6 {[%clk
0:01:01.5]} 45. Kh4 {[%clk 0:01:59.6]} 45... Nxe5 {[%clk 0:00:59.6]} 46. dxe5+
{[%clk 0:01:58.4]} 46... Kb5 {[%clk 0:00:59]} 47. Bxa7 {[%clk 0:01:57.2]} 47...
Ka4 {[%clk 0:00:57.3]} 48. Bc5 {[%clk 0:01:54.9]} 48... Kb3 {[%clk 0:00:57.1]}
49. Kxh5 {[%clk 0:01:54.9]} 49... Kxb2 {[%clk 0:00:57.5]} 50. Bb4 {[%clk
0:01:55.1]} 50... d4 {[%clk 0:00:51.7]} 51. cxd4 {[%clk 0:01:54.6]} 51... c3
{[%clk 0:00:51.9]} 52. Kg6 {[%clk 0:01:54.5]} 52... c2 {[%clk 0:00:52.2]} 53.
Bd2 {[%clk 0:01:54.5]} 53... Kxa3 {[%clk 0:00:51.1]} 54. f7 {[%clk 0:01:54.7]}
54... Bxf7+ {[%clk 0:00:49.1]} 55. Kxf7 {[%clk 0:01:54.7]} 55... b5 {[%clk
0:00:49.4]} 56. e6 {[%clk 0:01:54.9]} 56... b4 {[%clk 0:00:49.8]} 57. e7 {[%clk
0:01:54.9]} 57... b3 {[%clk 0:00:50.2]} 58. e8=Q {[%clk 0:01:52.6]} 58... b2
{[%clk 0:00:50.5]} 59. Qa8+ {[%clk 0:01:51.9]} 59... Kb3 {[%clk 0:00:50.6]} 60.
Qd5+ {[%clk 0:01:51.4]} 60... Ka3 {[%clk 0:00:49.7]} 61. Qc5+ {[%clk 0:01:51.2]}
61... Kb3 {[%clk 0:00:47.4]} 62. Qb4+ {[%clk 0:01:51.2]} 62... Ka2 {[%clk
0:00:47.3]} 63. Qa4+ {[%clk 0:01:51.1]} 63... Kb1 {[%clk 0:00:47]} 64. Qb3
{[%clk 0:01:35.6]} 64... c1=Q {[%clk 0:00:43.4]} 65. Bxc1 {[%clk 0:01:35.5]}
65... Kxc1 {[%clk 0:00:43.8]} 66. Qc3+ {[%clk 0:01:34.9]} 66... Kb1 {[%clk
0:00:42.1]} 67. d5 {[%clk 0:01:34.9]} 67... Ka2 {[%clk 0:00:41.4]} 68. Qc2
{[%clk 0:01:34.9]} 68... Ka1 {[%clk 0:00:41.1]} 69. Qa4+ {[%clk 0:01:34.2]} 1-0

[Event "*** SCC Grand Prix: Titled Tuesday Blitz"]
[Site "Chess.com"]
[Date "2020.07.07"]
[Round "1"]
[White "Hikaru"]
[Black "Karacsonyi_Gellert"]
[Result "1-0"]
[WhiteElo "3221"]
[BlackElo "2465"]
[TimeControl "180+1"]
[EndTime "10:06:46 PDT"]
[Termination "Hikaru won by resignation"]

1. Nf3 {[%clk 0:03:00.9]} 1... Nf6 {[%clk 0:02:58.9]} 2. b3 {[%clk 0:03:00.5]}
2... e6 {[%clk 0:02:58.5]} 3. Bb2 {[%clk 0:03:00]} 3... d5 {[%clk 0:02:58.2]} 4.
e3 {[%clk 0:02:59.1]} 4... Be7 {[%clk 0:02:58.1]} 5. d4 {[%clk 0:02:59.5]} 5...
O-O {[%clk 0:02:58.1]} 6. Bd3 {[%clk 0:03:00.2]} 6... c5 {[%clk 0:02:57.1]} 7.
O-O {[%clk 0:03:00.9]} 7... b6 {[%clk 0:02:56.7]} 8. Nbd2 {[%clk 0:03:00.7]}
8... Ba6 {[%clk 0:02:53.4]} 9. c4 {[%clk 0:02:59.8]} 9... Nc6 {[%clk 0:02:50.9]}
10. Rc1 {[%clk 0:02:59.5]} 10... Rc8 {[%clk 0:02:50.8]} 11. Re1 {[%clk
0:02:59.4]} 11... Qd7 {[%clk 0:02:48.7]} 12. dxc5 {[%clk 0:02:58.8]} 12... bxc5
{[%clk 0:02:47.4]} 13. cxd5 {[%clk 0:02:49.6]} 13... Bxd3 {[%clk 0:02:45]} 14.
dxc6 {[%clk 0:02:50]} 14... Qxc6 {[%clk 0:02:38.2]} 15. Ne5 {[%clk 0:02:50.1]}
15... Qa6 {[%clk 0:02:30.2]} 16. Nxd3 {[%clk 0:02:49.8]} 16... Qxd3 {[%clk
0:02:29.3]} 17. Bxf6 {[%clk 0:02:46.9]} 17... Bxf6 {[%clk 0:02:26.9]} 18. Nc4
{[%clk 0:02:47.2]} 18... Rfd8 {[%clk 0:02:24.7]} 19. Qxd3 {[%clk 0:02:47]} 19...
Rxd3 {[%clk 0:02:25.6]} 20. Red1 {[%clk 0:02:47]} 20... Rxd1+ {[%clk 0:02:06.2]}
21. Rxd1 {[%clk 0:02:47.9]} 21... Rd8 {[%clk 0:02:06.8]} 22. Rc1 {[%clk
0:02:46.9]} 22... Kf8 {[%clk 0:02:04.5]} 23. Kf1 {[%clk 0:02:47.2]} 23... Ke7
{[%clk 0:02:04.3]} 24. Ke2 {[%clk 0:02:47.2]} 24... h5 {[%clk 0:02:03.4]} 25.
Nd2 {[%clk 0:02:45.5]} 25... Rc8 {[%clk 0:01:57.1]} 26. Ne4 {[%clk 0:02:45.4]}
26... Bb2 {[%clk 0:01:50.2]} 27. Rxc5 {[%clk 0:02:44.9]} 27... Rxc5 {[%clk
0:01:50.6]} 28. Nxc5 {[%clk 0:02:45.8]} 28... Kd6 {[%clk 0:01:44.8]} 29. Nd3
{[%clk 0:02:45.6]} 29... Bc3 {[%clk 0:01:39.7]} 30. e4 {[%clk 0:02:46]} 30...
Bd4 {[%clk 0:01:38]} 31. f3 {[%clk 0:02:41.1]} 31... g6 {[%clk 0:01:38]} 32. Kd2
{[%clk 0:02:38.1]} 32... Bg1 {[%clk 0:01:35]} 33. h3 {[%clk 0:02:37.9]} 33...
Bd4 {[%clk 0:01:34.4]} 34. b4 {[%clk 0:02:36.4]} 34... f5 {[%clk 0:01:33.2]} 35.
a4 {[%clk 0:02:36.2]} 35... fxe4 {[%clk 0:01:29.9]} 36. fxe4 {[%clk 0:02:37.1]}
36... a6 {[%clk 0:01:30]} 37. Kc2 {[%clk 0:02:35.1]} 37... g5 {[%clk 0:01:12.8]}
38. g4 {[%clk 0:02:33.7]} 38... hxg4 {[%clk 0:01:09.5]} 39. hxg4 {[%clk
0:02:33.8]} 39... Bb6 {[%clk 0:01:01.8]} 40. Nb2 {[%clk 0:02:30.6]} 40... Bc7
{[%clk 0:00:55.9]} 41. Nc4+ {[%clk 0:02:29.4]} 41... Kc6 {[%clk 0:00:56.4]} 42.
Nd2 {[%clk 0:02:29.1]} 42... a5 {[%clk 0:00:47.2]} 43. Kb3 {[%clk 0:02:25.9]}
43... axb4 {[%clk 0:00:45.7]} 44. Kxb4 {[%clk 0:02:25.5]} 44... Bd6+ {[%clk
0:00:46.2]} 45. Kc4 {[%clk 0:02:25.9]} 45... Bc7 {[%clk 0:00:44.8]} 46. Nf3
{[%clk 0:02:26]} 46... Bd8 {[%clk 0:00:45]} 47. Nd4+ {[%clk 0:02:20.6]} 47...
Kd6 {[%clk 0:00:42.4]} 48. Kb5 {[%clk 0:02:19.5]} 48... Bc7 {[%clk 0:00:39]} 49.
Nc6 {[%clk 0:02:19.8]} 49... Kd7 {[%clk 0:00:23.8]} 50. a5 {[%clk 0:02:18]}
50... Kc8 {[%clk 0:00:16.2]} 51. a6 {[%clk 0:02:18]} 51... Bf4 {[%clk
0:00:15.2]} 52. Nd4 {[%clk 0:02:15.7]} 52... e5 {[%clk 0:00:13.1]} 53. Kc6
{[%clk 0:02:14.2]} 53... Kb8 {[%clk 0:00:11.4]} 54. Ne6 {[%clk 0:02:07.7]} 54...
Ka7 {[%clk 0:00:11.1]} 55. Kb5 {[%clk 0:02:04.2]} 55... Be3 {[%clk 0:00:09.9]}
56. Nd8 {[%clk 0:02:05]} 56... Bf4 {[%clk 0:00:09.4]} 57. Nc6+ {[%clk
0:02:05.9]} 57... Ka8 {[%clk 0:00:10]} 58. Kc4 {[%clk 0:02:06.2]} 58... Bg3
{[%clk 0:00:08.6]} 59. Kd5 {[%clk 0:02:06.6]} 59... Bf4 {[%clk 0:00:07.2]} 60.
Ke6 {[%clk 0:02:03.9]} 60... Bg3 {[%clk 0:00:05.7]} 61. Kf6 {[%clk 0:02:04.4]}
61... Bf4 {[%clk 0:00:04.6]} 62. Nxe5 {[%clk 0:02:05]} 62... Ka7 {[%clk
0:00:03.2]} 63. Ng6 {[%clk 0:02:01.8]} 63... Kxa6 {[%clk 0:00:01.8]} 64. e5
{[%clk 0:02:02.7]} 64... Kb6 {[%clk 0:00:01.5]} 65. e6 {[%clk 0:02:03.6]} 65...
Bd6 {[%clk 0:00:01.8]} 66. e7 {[%clk 0:02:04.5]} 66... Bxe7+ {[%clk 0:00:02.3]}
67. Kxe7 {[%clk 0:02:05]} 67... Kc7 {[%clk 0:00:02.9]} 68. Kf6 {[%clk
0:02:05.9]} 1-0

[Event "*** SCC Grand Prix: Titled Tuesday Blitz"]
[Site "Chess.com"]
[Date "2020.07.07"]
[Round "1"]
[White "PauloFanha"]
[Black "pastouche06"]
[Result "0-1"]
[WhiteElo "1988"]
[BlackElo "2483"]
[TimeControl "180+1"]
[EndTime "10:06:47 PDT"]
[Termination "pastouche06 won by resignation"]

1. e4 {[%clk 0:03:00.9]} 1... c6 {[%clk 0:02:58.3]} 2. Bc4 {[%clk 0:02:58.6]}
2... d5 {[%clk 0:02:56.4]} 3. Bb3 {[%clk 0:02:57.8]} 3... dxe4 {[%clk
0:02:44.6]} 4. Qh5 {[%clk 0:02:56.4]} 4... e6 {[%clk 0:02:42.2]} 5. Nc3 {[%clk
0:02:54.6]} 5... Nf6 {[%clk 0:02:36.7]} 6. Qh4 {[%clk 0:02:53.7]} 6... Nbd7
{[%clk 0:02:36.8]} 7. Nxe4 {[%clk 0:02:51.6]} 7... Nxe4 {[%clk 0:02:37.7]} 8.
Qxe4 {[%clk 0:02:50.2]} 8... Be7 {[%clk 0:02:37.8]} 9. Nf3 {[%clk 0:02:48.1]}
9... O-O {[%clk 0:02:36.2]} 10. O-O {[%clk 0:02:46.3]} 10... Nf6 {[%clk
0:02:36.5]} 11. Qe2 {[%clk 0:02:40.2]} 11... b6 {[%clk 0:02:36]} 12. d4 {[%clk
0:02:36.5]} 12... c5 {[%clk 0:02:22.1]} 13. Be3 {[%clk 0:02:28.8]} 13... Qc7
{[%clk 0:02:19.3]} 14. dxc5 {[%clk 0:02:24]} 14... Bxc5 {[%clk 0:02:20.2]} 15.
Bxc5 {[%clk 0:02:22.1]} 15... Qxc5 {[%clk 0:02:21.1]} 16. c3 {[%clk 0:02:20.9]}
16... Bb7 {[%clk 0:02:20.8]} 17. Rad1 {[%clk 0:02:16.3]} 17... Rad8 {[%clk
0:02:20.1]} 18. Rxd8 {[%clk 0:02:13.5]} 18... Rxd8 {[%clk 0:02:21]} 19. Rd1
{[%clk 0:02:12.4]} 19... Rxd1+ {[%clk 0:02:17.7]} 20. Qxd1 {[%clk 0:02:11.3]}
20... g6 {[%clk 0:02:16.7]} 21. Bc2 {[%clk 0:02:04.1]} 21... Kg7 {[%clk
0:02:14.7]} 22. Qd3 {[%clk 0:01:54.2]} 22... h5 {[%clk 0:01:30.2]} 23. h3 {[%clk
0:01:50]} 23... Be4 {[%clk 0:01:22.1]} 24. Qd2 {[%clk 0:01:44.3]} 24... Bxf3
{[%clk 0:01:21]} 25. gxf3 {[%clk 0:01:42.3]} 25... Qc4 {[%clk 0:01:18.2]} 26.
Bb3 {[%clk 0:01:34.6]} 26... Qh4 {[%clk 0:01:17.9]} 27. Kg2 {[%clk 0:01:26.2]}
27... Nh7 {[%clk 0:01:14.5]} 28. Qd4+ {[%clk 0:01:22.2]} 28... Qxd4 {[%clk
0:01:14]} 29. cxd4 {[%clk 0:01:22.1]} 29... Kf6 {[%clk 0:01:03.1]} 30. Kg3
{[%clk 0:01:13.1]} 30... Ke7 {[%clk 0:01:01.3]} 31. Kf4 {[%clk 0:01:11.3]} 31...
g5+ {[%clk 0:00:59]} 32. Ke3 {[%clk 0:01:03.9]} 32... Nf6 {[%clk 0:00:50.7]} 33.
Ba4 {[%clk 0:00:58.5]} 33... Nd5+ {[%clk 0:00:48.4]} 34. Kd2 {[%clk 0:00:55.9]}
34... Nf4 {[%clk 0:00:48]} 35. Kc3 {[%clk 0:00:45]} 35... Nxh3 {[%clk
0:00:46.3]} 36. Kb4 {[%clk 0:00:43.9]} 36... Nxf2 {[%clk 0:00:44.2]} 37. Bc6
{[%clk 0:00:39.6]} 37... Kd6 {[%clk 0:00:42.8]} 38. Kb5 {[%clk 0:00:38.2]} 38...
h4 {[%clk 0:00:39.2]} 39. f4 {[%clk 0:00:31.4]} 39... g4 {[%clk 0:00:38.7]} 40.
Be8 {[%clk 0:00:27.1]} 40... g3 {[%clk 0:00:38.2]} 41. Bxf7 {[%clk 0:00:24.1]}
41... g2 {[%clk 0:00:37.9]} 0-1

[Event "*** SCC Grand Prix: Titled Tuesday Blitz"]
[Site "Chess.com"]
[Date "2020.07.07"]
[Round "1"]
[White "BilodeauA"]
[Black "MashaFromRussia"]
[Result "1-0"]
[WhiteElo "2834"]
[BlackElo "2431"]
[TimeControl "180+1"]
[EndTime "10:06:49 PDT"]
[Termination "BilodeauA won by resignation"]

1. e4 {[%clk 0:02:52.6]} 1... c5 {[%clk 0:02:59.7]} 2. Nf3 {[%clk 0:02:51.6]}
2... Nc6 {[%clk 0:03:00]} 3. Bb5 {[%clk 0:02:51.2]} 3... d6 {[%clk 0:02:59.8]}
4. O-O {[%clk 0:02:48.7]} 4... Bd7 {[%clk 0:02:59.9]} 5. c3 {[%clk 0:02:48.4]}
5... Nf6 {[%clk 0:02:59.7]} 6. Re1 {[%clk 0:02:48.7]} 6... a6 {[%clk 0:03:00.1]}
7. Bf1 {[%clk 0:02:48.2]} 7... Bg4 {[%clk 0:02:59.9]} 8. d3 {[%clk 0:02:44.1]}
8... e6 {[%clk 0:02:58.3]} 9. Nbd2 {[%clk 0:02:44.4]} 9... Be7 {[%clk
0:02:58.2]} 10. h3 {[%clk 0:02:44.8]} 10... Bh5 {[%clk 0:02:58]} 11. Be2 {[%clk
0:02:44]} 11... O-O {[%clk 0:02:57.2]} 12. Nf1 {[%clk 0:02:44.6]} 12... d5
{[%clk 0:02:55.1]} 13. e5 {[%clk 0:02:32.2]} 13... Nd7 {[%clk 0:02:49.8]} 14.
Bf4 {[%clk 0:02:32.4]} 14... d4 {[%clk 0:02:39.8]} 15. Ng3 {[%clk 0:02:22.8]}
15... Bg6 {[%clk 0:02:32.8]} 16. c4 {[%clk 0:02:23]} 16... b5 {[%clk 0:02:26.7]}
17. b3 {[%clk 0:02:17.9]} 17... h6 {[%clk 0:02:09.4]} 18. Bf1 {[%clk 0:02:17.3]}
18... Rb8 {[%clk 0:02:05]} 19. Qd2 {[%clk 0:02:11.5]} 19... bxc4 {[%clk
0:02:03.1]} 20. bxc4 {[%clk 0:02:11]} 20... Qa5 {[%clk 0:01:59.6]} 21. Qe2
{[%clk 0:02:07.6]} 21... Qa3 {[%clk 0:01:57]} 22. Bc1 {[%clk 0:01:42.7]} 22...
Qa4 {[%clk 0:01:52.8]} 23. h4 {[%clk 0:01:34]} 23... Nb4 {[%clk 0:01:51]} 24.
Ne4 {[%clk 0:01:21.5]} 24... Nc2 {[%clk 0:01:49]} 25. Qd1 {[%clk 0:01:20.7]}
25... Bh5 {[%clk 0:01:29.7]} 26. Re2 {[%clk 0:01:13.8]} 26... Bxf3 {[%clk
0:01:20.5]} 27. gxf3 {[%clk 0:01:14.7]} 27... Nxe5 {[%clk 0:01:20.8]} 28. Rxc2
{[%clk 0:01:14.1]} 28... Bxh4 {[%clk 0:01:19.6]} 29. Bf4 {[%clk 0:01:08.5]}
29... Nxf3+ {[%clk 0:00:55.8]} 30. Qxf3 {[%clk 0:01:09.4]} 30... Qxc2 {[%clk
0:00:55.1]} 31. Bxb8 {[%clk 0:01:10.1]} 31... Rxb8 {[%clk 0:00:55.9]} 32. Qf4
{[%clk 0:01:10.3]} 32... Qb2 {[%clk 0:00:44.1]} 33. Re1 {[%clk 0:01:09.8]} 33...
Be7 {[%clk 0:00:42.6]} 34. Bg2 {[%clk 0:01:03.4]} 34... h5 {[%clk 0:00:36]} 35.
Kh1 {[%clk 0:01:02.1]} 35... Qb4 {[%clk 0:00:35.8]} 36. Rg1 {[%clk 0:01:02]}
36... Rf8 {[%clk 0:00:32.9]} 37. Bf3 {[%clk 0:00:59.8]} 37... h4 {[%clk
0:00:30.8]} 38. Nf6+ {[%clk 0:00:53.9]} 38... Bxf6 {[%clk 0:00:28.1]} 39. Qxf6
{[%clk 0:00:54.8]} 39... g6 {[%clk 0:00:28.4]} 40. Be4 {[%clk 0:00:53.6]} 40...
Qd2 {[%clk 0:00:11.6]} 41. Rxg6+ {[%clk 0:00:52.9]} 1-0

[Event "*** SCC Grand Prix: Titled Tuesday Blitz"]
[Site "Chess.com"]
[Date "2020.07.07"]
[Round "1"]
[White "Chesswizard_2007"]
[Black "Andreikka"]
[Result "0-1"]
[WhiteElo "2449"]
[BlackElo "2919"]
[TimeControl "180+1"]
[EndTime "10:06:50 PDT"]
[Termination "Andreikka won by resignation"]

1. d4 {[%clk 0:02:59.8]} 1... Nf6 {[%clk 0:02:59.5]} 2. c4 {[%clk 0:02:58]} 2...
e6 {[%clk 0:02:55.7]} 3. Nf3 {[%clk 0:02:55.9]} 3... d5 {[%clk 0:02:54.1]} 4. g3
{[%clk 0:02:53.8]} 4... Bb4+ {[%clk 0:02:52.8]} 5. Bd2 {[%clk 0:02:46.8]} 5...
Be7 {[%clk 0:02:52.3]} 6. Bg2 {[%clk 0:02:46.4]} 6... O-O {[%clk 0:02:52.3]} 7.
O-O {[%clk 0:02:41.8]} 7... Nbd7 {[%clk 0:02:52.7]} 8. Bc3 {[%clk 0:02:26.4]}
8... Ne4 {[%clk 0:02:46.8]} 9. Nfd2 {[%clk 0:02:21.8]} 9... Nxc3 {[%clk
0:02:44.1]} 10. Nxc3 {[%clk 0:02:22.7]} 10... c6 {[%clk 0:02:43.8]} 11. e4
{[%clk 0:02:22.4]} 11... e5 {[%clk 0:02:41.2]} 12. exd5 {[%clk 0:02:11.8]} 12...
exd4 {[%clk 0:02:35.4]} 13. Ne2 {[%clk 0:01:56.3]} 13... c5 {[%clk 0:02:26.3]}
14. Nc1 {[%clk 0:01:50.5]} 14... Ne5 {[%clk 0:02:19.4]} 15. Re1 {[%clk
0:01:48.9]} 15... Bd6 {[%clk 0:02:19.3]} 16. Ne4 {[%clk 0:01:47.1]} 16... Nxc4
{[%clk 0:02:16.8]} 17. Nd3 {[%clk 0:01:46.1]} 17... b6 {[%clk 0:02:11.6]} 18. b3
{[%clk 0:01:37.6]} 18... Na3 {[%clk 0:02:08.2]} 19. Qh5 {[%clk 0:01:12.6]} 19...
h6 {[%clk 0:02:05.9]} 20. Rac1 {[%clk 0:01:08.4]} 20... Nb5 {[%clk 0:02:02.6]}
21. f4 {[%clk 0:01:07.6]} 21... Nc3 {[%clk 0:01:38.2]} 22. Ne5 {[%clk
0:00:56.9]} 22... Nxe4 {[%clk 0:01:35.4]} 23. Bxe4 {[%clk 0:00:53.8]} 23... Qf6
{[%clk 0:01:35.9]} 24. Nc6 {[%clk 0:00:51.1]} 24... Bd7 {[%clk 0:01:24.9]} 25.
Qf3 {[%clk 0:00:49.4]} 25... Rfe8 {[%clk 0:01:23.8]} 26. Bd3 {[%clk 0:00:47.8]}
26... g6 {[%clk 0:01:20.5]} 27. Bb5 {[%clk 0:00:37.9]} 27... Kg7 {[%clk
0:01:19.9]} 28. Kg2 {[%clk 0:00:37]} 28... a6 {[%clk 0:01:20.1]} 29. Bd3 {[%clk
0:00:35.5]} 29... b5 {[%clk 0:01:20.5]} 30. Be4 {[%clk 0:00:30.1]} 30... h5
{[%clk 0:01:19.7]} 31. h3 {[%clk 0:00:29.1]} 31... h4 {[%clk 0:01:19.1]} 32. Ne5
{[%clk 0:00:23.1]} 32... Bc8 {[%clk 0:01:04.5]} 33. Ng4 {[%clk 0:00:20.3]} 33...
Bxg4 {[%clk 0:01:01.6]} 34. hxg4 {[%clk 0:00:21.2]} 34... hxg3 {[%clk
0:01:01.2]} 35. Kxg3 {[%clk 0:00:19.9]} 35... Rh8 {[%clk 0:00:59.4]} 36. Rh1
{[%clk 0:00:19]} 36... g5 {[%clk 0:00:59.7]} 37. Kg2 {[%clk 0:00:18]} 37... Qxf4
{[%clk 0:00:58.3]} 38. Qxf4 {[%clk 0:00:17.4]} 38... gxf4 {[%clk 0:00:59.2]} 39.
Rxh8 {[%clk 0:00:17.6]} 39... Rxh8 {[%clk 0:01:00]} 40. Rh1 {[%clk 0:00:17.9]}
40... Rxh1 {[%clk 0:00:59.3]} 41. Kxh1 {[%clk 0:00:18.8]} 41... c4 {[%clk
0:01:00.2]} 42. bxc4 {[%clk 0:00:19.7]} 42... bxc4 {[%clk 0:01:01.1]} 43. Kg2
{[%clk 0:00:20.2]} 43... Kf6 {[%clk 0:01:01.7]} 44. Kf3 {[%clk 0:00:19.9]} 44...
Ke5 {[%clk 0:01:02.2]} 45. Bh7 {[%clk 0:00:18.9]} 45... d3 {[%clk 0:00:58]} 46.
Kf2 {[%clk 0:00:16.7]} 46... Kd4 {[%clk 0:00:57.7]} 47. Ke1 {[%clk 0:00:16.7]}
47... c3 {[%clk 0:00:58.2]} 0-1

[Event "*** SCC Grand Prix: Titled Tuesday Blitz"]
[Site "Chess.com"]
[Date "2020.07.07"]
[Round "1"]
[White "Sychev_Klementy"]
[Black "Future2700"]
[Result "1-0"]
[WhiteElo "2811"]
[BlackElo "2422"]
[TimeControl "180+1"]
[EndTime "10:06:50 PDT"]
[Termination "Sychev_Klementy won on time"]

1. e4 {[%clk 0:03:00.9]} 1... c5 {[%clk 0:02:58.7]} 2. Nf3 {[%clk 0:03:00]} 2...
e6 {[%clk 0:02:57.5]} 3. d4 {[%clk 0:02:54]} 3... cxd4 {[%clk 0:02:49.4]} 4.
Nxd4 {[%clk 0:02:54.1]} 4... Nc6 {[%clk 0:02:20.4]} 5. Nc3 {[%clk 0:02:52.7]}
5... Qc7 {[%clk 0:02:16.8]} 6. g3 {[%clk 0:02:47.6]} 6... a6 {[%clk 0:01:59.6]}
7. Bg2 {[%clk 0:02:24.5]} 7... Nf6 {[%clk 0:01:56.6]} 8. O-O {[%clk 0:02:14.1]}
8... Nxd4 {[%clk 0:01:49.6]} 9. Qxd4 {[%clk 0:02:13.7]} 9... Bc5 {[%clk
0:01:49.9]} 10. Bf4 {[%clk 0:02:10.8]} 10... d6 {[%clk 0:01:49.8]} 11. Qd2
{[%clk 0:02:10.4]} 11... h6 {[%clk 0:01:46.6]} 12. Rad1 {[%clk 0:02:09.4]} 12...
e5 {[%clk 0:01:38.7]} 13. Be3 {[%clk 0:02:07.2]} 13... Be6 {[%clk 0:01:34.4]}
14. Bxc5 {[%clk 0:02:06.8]} 14... dxc5 {[%clk 0:01:35.3]} 15. Nd5 {[%clk
0:02:07]} 15... Bxd5 {[%clk 0:01:34.7]} 16. exd5 {[%clk 0:02:07.9]} 16... Qd6
{[%clk 0:01:34.3]} 17. c4 {[%clk 0:02:03.1]} 17... O-O {[%clk 0:01:33.8]} 18. a4
{[%clk 0:02:01.9]} 18... b6 {[%clk 0:01:26.9]} 19. Rfe1 {[%clk 0:01:56.8]} 19...
Rfe8 {[%clk 0:01:24.1]} 20. Re2 {[%clk 0:01:52.2]} 20... Re7 {[%clk 0:01:20.5]}
21. Rde1 {[%clk 0:01:50.1]} 21... Rae8 {[%clk 0:01:21]} 22. a5 {[%clk
0:01:46.1]} 22... e4 {[%clk 0:01:00.9]} 23. Qc2 {[%clk 0:01:28.9]} 23... b5
{[%clk 0:00:54.2]} 24. Bxe4 {[%clk 0:01:10.9]} 24... Qc7 {[%clk 0:00:30.4]} 25.
cxb5 {[%clk 0:01:00.6]} 25... axb5 {[%clk 0:00:30.2]} 26. a6 {[%clk 0:01:00.8]}
26... c4 {[%clk 0:00:21]} 27. Bf3 {[%clk 0:00:50.4]} 27... Rxe2 {[%clk 0:00:17]}
28. Rxe2 {[%clk 0:00:51.3]} 28... Rxe2 {[%clk 0:00:17.2]} 29. Qxe2 {[%clk
0:00:51.1]} 29... Kf8 {[%clk 0:00:13.1]} 30. Qe3 {[%clk 0:00:49.3]} 30... Qb8
{[%clk 0:00:03.6]} 31. a7 {[%clk 0:00:47.7]} 31... Qa8 {[%clk 0:00:03.7]} 32. d6
{[%clk 0:00:47.5]} 32... Nd5 {[%clk 0:00:03.6]} 33. Qc5 {[%clk 0:00:38.1]} 1-0